[Event "EICC 2025"]
[Site "Eforie-Nord"]
[Date "2025.03.15"]
[Round "1.14"]
[White "Kollars, Dmitrij"]
[Black "Craciun, Sasha-Matei"]
[Result "1-0"]
[Annotator "TA"]
[ECO "C48"]
[WhiteElo "2649"]
[BlackElo "2325"]
[PlyCount "157"]
[EventDate "2025.03.14"]
[EventType "swiss"]
[EventCountry "ROU"]
[SourceTitle "playchess.com"]
[Source "ChessBase"]
[SourceQuality "1"]
[TimeControl "40/5400+30:1800+30"]

{[%evp 9,157,9,4,13,10,8,13,0,0,6,5,6,17,-4,14,18,31,24,30,25,21,26,28,18,20,16,21,16,38,17,16,16,24,24,24,25,48,27,33,0,50,31,45,25,25,25,25,25,36,35,43,39,35,35,31,36,52,49,55,52,60,40,31,31,31,31,59,35,92,93,119,127,163,160,162,159,159,149,170,147,214,202,218,183,207,215,210,210,231,235,217,202,216,199,225,204,199,202,161,173,233,215,221,193,214,212,214,180,250,152,409,409,402,395,391,384,384,51,51,0,384,384,384,294,529,529,522,499,484,484,439,431,1304,1233,1206,1206,1117,1113,2164,2091,1252,1318,5575,5340,5253,5253,5089,4960,4631,4627]} 1. e4 {[%emt 0:00:07]} e5 {[%emt 0:00:15]} 2. Nf3 {[%emt 0:00:14]} Nc6 {[%emt 1:31:15]} 3. Nc3 {[%emt 0:00:27]} Nf6 {[%emt 0:00:00]} 4. Bb5 {[%emt 1:31:42]} Bd6 {[%emt 0:00:00]} 5. d3 {[%emt 0:00:00]} O-O {[%emt 0:00:00]} 6. Ba4 {[%emt 0:01:00] C48: Four Knights: 4 Bb5, replies other than 4...Bb4.} a6 {[%emt 0:00:00]} 7. Bg5 {[%emt 0:00:00]} b5 {[%emt 0:00:00]} 8. Bb3 {[%emt 0:00:00] The position is equal.} Be7 {[%emt 0:00:00]} 9. a3 $5 {[%emt 0:01:30][%mdl 4] A promising side line.} d6 {[%emt 0:03:30]} 10. h3 {[%emt 0:00:00]} Be6 {[%emt 0:00:00]} 11. Nd5 {[%emt 0:00:00]} Bxd5 $146 {[%emt 0:00:00]} (11... h6 12. Bd2 Nb8 13. a4 Nbd7 14. axb5 Bxd5 15. exd5 axb5 16. O-O Rxa1 17. Qxa1 Nc5 {1-0 Thavandiran,S (2399)-Montes Orozco,M (2166) American Continental 16th 2022 (5)}) 12. exd5 {[%emt 0:00:00]} Nd4 {[%emt 0:00:00]} 13. Nxd4 {[%emt 0:00:00]} exd4 {[%emt 0:00:00]} 14. O-O {[%emt 0:00:00]} Rb8 {[%emt 0:00:00][%cal Of6d5]} 15. Bd2 {[%emt 0:00:00]} Nd7 {[%emt 0:00:00][%cal Bf6d7,Bd7c5,Bc5a4][%mdl 32]} 16. Qg4 {[%emt 0:00:00]} Bf6 {[%emt 0:00:00]} 17. Rae1 {[%emt 0:00:00]} Nc5 {[%emt 0:00:00]} 18. Ba2 {[%emt 0:00:00]} Qd7 {[%emt 0:00:00]} 19. Ba5 {[%emt 0:00:00]} Rbc8 {[%emt 0:00:00]} 20. Re2 {[%emt 0:00:00]} Qxg4 {[%emt 0:00:00]} 21. hxg4 {[%emt 0:06:00]} Na4 {[%emt 0:00:00]} 22. Rb1 {[%emt 0:00:30]} Nb6 {[%emt 0:00:00]} 23. Rbe1 {[%emt 0:00:30]} Na4 {[%emt 0:07:00]} 24. Rb1 {[%emt 0:00:00]} Nb6 {[%emt 0:00:00]} 25. Bb3 {[%emt 0:00:00]} Rfe8 {[%emt 0:00:00]} 26. Kf1 {[%emt 0:00:00]} Rxe2 {[%emt 0:00:00]} 27. Kxe2 {[%emt 0:00:00]} Kf8 {[%emt 0:00:00]} 28. Ra1 {[%emt 0:00:00]} Nd7 {[%emt 0:00:00]} 29. a4 {[%emt 0:00:00]} Nc5 {[%emt 0:00:00]} 30. axb5 {[%emt 0:00:00]} Nxb3 {[%emt 0:00:00]} 31. cxb3 {[%emt 0:00:00]} axb5 $14 {[%emt 0:00:00][%mdl 4096] Endgame KRB-KRB} 32. Bd2 {[%emt 0:00:00]} h6 {[%emt 0:00:00]} 33. Ra5 {[%emt 0:00:00]} Ke8 {[%emt 0:00:00]} 34. Rxb5 {[%emt 0:00:00]} Kd7 {[%emt 0:00:00]} 35. Kf3 {[%emt 0:00:00]} Bg5 {[%emt 0:00:00]} 36. Bxg5 {[%emt 0:00:00]} hxg5 {[%emt 0:00:00] KR-KR. White is a pawn up.} 37. Rb4 {[%emt 0:00:00]} Re8 {[%emt 0:01:03]} 38. Rxd4 {[%emt 0:00:00]} Rb8 {[%emt 0:00:46]} (38... Re5 $14) 39. b4 $16 {[%emt 0:00:00][%cal Bb3b4,Bb4b5][%mdl 32]} Ra8 {[%emt 0:00:45]} 40. b5 $1 {[%emt 0:00:00]} Kc8 {[%emt 0:01:37]} 41. Re4 {[%emt 0:14:03][%cal Ob5b6]} Kd7 {[%emt 0:30:01]} 42. Rb4 {[%emt 0:01:22]} Rb8 {[%emt 0:01:51]} 43. Ke3 {[%emt 0:05:05]} Re8+ {[%emt 0:00:42]} 44. Kd2 {[%emt 0:01:05]} Re5 {[%emt 0:00:15]} (44... Rb8 $16 45. Kc3 Kc8) 45. b6 $18 {[%emt 0:01:17]} cxb6 {[%emt 0:00:35]} 46. Rxb6 {[%emt 0:00:07]} Rxd5 {[%emt 0:00:08]} 47. Rb7+ {[%emt 0:00:14]} Ke6 {[%emt 0:00:28]} 48. b4 $1 {[%emt 0:00:07]} g6 {[%emt 0:02:09] [#]} 49. f3 $1 {[%emt 0:10:34]} f5 {[%emt 0:00:00]} 50. Kc3 {[%emt 0:00:00]} Re5 {[%emt 0:00:00]} 51. Rb8 {[%emt 0:00:00]} Ke7 {[%emt 0:00:00] Inhibits Re8+.} 52. Kd2 {[%emt 0:00:00] Against Re2+} Rd5 {[%emt 0:00:00]} 53. gxf5 {[%emt 0:00:00]} Rxf5 {[%emt 0:00:00][%cal Og5g4]} 54. Rb7+ {[%emt 0:00:00]} Ke6 {[%emt 0:00:00]} (54... Kd8 $142 55. Rg7 g4 56. Rxg6 (56. fxg4 Rg5 $16) 56... gxf3 57. gxf3 (57. Rxd6+ $2 Kc7 $19) 57... Kc7) 55. Rg7 {[%emt 0:00:00]} Kf6 {[%emt 0:00:00]} 56. Rg8 {[%emt 0:00:00]} Kf7 {[%emt 0:00:00] [#] Prevents Rf8+} 57. Rc8 {[%emt 0:00:00]} Ke7 {[%emt 0:00:00]} 58. Kc3 {[%emt 0:00:00]} Kd7 {[%emt 0:00:00]} (58... g4 $142 59. fxg4 Rg5) 59. Rc4 {[%emt 0:00:00]} d5 $2 {[%emt 0:00:00]} (59... Rd5 $16 60. Rg4 Rb5) 60. Rg4 {[%emt 0:03:29]} Kc6 {[%emt 0:00:00]} 61. Kb3 {[%emt 0:00:53]} Kb5 {[%emt 0:00:00]} 62. d4 {[%emt 0:03:02] Dodges Re5} Rf4 {[%emt 0:00:00]} 63. Kc3 $2 {[%emt 0:00:31]} (63. Rxg5 $18 Rxd4 64. Kc3 (64. Rxg6 Rxb4+ 65. Kc3 Ra4 $16)) 63... Rf5 $14 {[%emt 0:00:00]} 64. Kb3 $2 {[%emt 0:00:04][%mdl 8192]} (64. Rg3 $1 $14) 64... Rf4 $18 {[%emt 0:00:00] Black is now going downhill.} 65. Rxg5 {[%emt 0:00:23]} Rxd4 {[%emt 0:00:00]} 66. Kc3 {[%emt 0:00:09]} ({Stronger than} 66. Rxg6 Rxb4+ 67. Kc3 Ra4 $11) 66... Rd1 $2 {[%emt 0:00:54]} (66... Rxb4 {was worth a try.} 67. Rxd5+ (67. Rxg6 Ra4 $16) 67... Kc6) 67. Rxg6 {[%emt 0:00:35] White is clearly winning.} d4+ {[%emt 0:01:45][%cal Bd5d4,Bd4d3][%mdl 32]} 68. Kc2 {[%emt 0:00:05]} Rg1 {[%emt 0:01:08]} 69. Kd3 {[%emt 0:00:27]} Rd1+ {[%emt 0:00:05]} 70. Ke4 {[%emt 0:00:17] Black must now prevent Rd6.} Kxb4 {[%emt 0:00:09]} (70... d3 $142 71. Kd4 Kxb4 72. Rb6+ Ka3) 71. Rc6 {[%emt 0:00:34]} d3 {[%emt 0:00:56]} 72. Ke3 {[%emt 0:00:10]} Kb3 {[%emt 0:00:37]} 73. g4 {[%emt 0:00:39][%cal Bg2g4,Bg4g5][%mdl 32]} Kb2 {[%emt 0:01:18]} 74. g5 {[%emt 0:00:30]} d2 {[%emt 0:00:13]} 75. Ke2 {[%emt 0:00:19]} Rg1 {[%emt 0:00:31]} 76. Kxd2 {[%emt 0:00:12]} Rxg5 {[%emt 0:00:05]} 77. Rb6+ {[%emt 0:00:10]} Ka3 {[%emt 0:00:01]} 78. Ke3 {[%emt 0:00:11]} Rf5 {[%emt 0:00:02]} 79. f4 {[%emt 0:00:09] Weighted Error Value: White=0.08 (flawless) /Black=0.15 (very precise)   Loses game:     	---       	Black=1      Missed win:     	White=1     	---        Mistake:       	White=1     	Black=6      Inaccurate:     	White=1     	Black=1      OK:         	White=22    	Black=27     Best:        	White=10    	Black=5      Strong:       	White=2     	---} 1-0

[Event "EICC 2025"]
[Site "Eforie-Nord"]
[Date "2025.03.15"]
[Round "1.14"]
[White "Stanojevic, Ilija"]
[Black "Lodici, Lorenzo"]
[Result "0-1"]
[Annotator "ChessBase"]
[ECO "A48"]
[WhiteElo "2230"]
[BlackElo "2559"]
[PlyCount "52"]
[EventDate "2025.03.14"]
[EventType "swiss"]
[EventCountry "ROU"]
[SourceTitle "playchess.com"]
[Source "ChessBase"]
[SourceQuality "1"]
[TimeControl "40/5400+30:1800+30"]

1. d4 {[%emt 0:00:04]} Nf6 {[%emt 0:00:08]} 2. Nf3 {[%emt 0:00:06]} b6 {[%emt 0:01:44]} 3. e3 {[%emt 0:00:15]} Bb7 {[%emt 0:00:05]} 4. Bd3 {[%emt 0:00:17]} c5 {[%emt 0:04:55]} 5. c4 {[%emt 0:01:54]} cxd4 {[%emt 0:00:04]} 6. exd4 {[%emt 0:00:10]} g6 {[%emt 0:00:22]} 7. O-O {[%emt 0:00:58]} Bg7 {[%emt 0:00:03]} 8. Nc3 {[%emt 0:03:25]} O-O {[%emt 0:00:07]} 9. d5 {[%emt 0:02:13]} e6 {[%emt 0:00:05]} 10. Bg5 {[%emt 0:04:07]} h6 {[%emt 0:03:03]} 11. Bh4 {[%emt 0:00:34]} Na6 {[%emt 0:07:04]} 12. Rc1 {[%emt 0:04:03]} Nc5 {[%emt 0:12:26]} 13. Bb1 {[%emt 0:04:30]} a5 {[%emt 0:00:15]} 14. b3 {[%emt 0:10:19]} Rc8 {[%emt 0:04:57]} 15. Re1 {[%emt 0:06:59]} exd5 {[%emt 0:03:21]} 16. Nxd5 {[%emt 0:05:33]} Bxd5 {[%emt 0:00:05]} 17. cxd5 {[%emt 0:00:44]} b5 {[%emt 0:00:05]} 18. Qd2 {[%emt 0:20:35]} h5 {[%emt 0:14:47]} 19. Qf4 {[%emt 0:07:12]} Qb6 {[%emt 0:01:32]} 20. Rcd1 {[%emt 0:01:27]} Rce8 {[%emt 0:05:46]} 21. Ne5 {[%emt 0:08:06]} Re7 {[%emt 0:07:24]} 22. d6 {[%emt 0:06:18]} Re6 {[%emt 0:01:39]} 23. Nxf7 {[%emt 0:08:46]} Kxf7 {[%emt 0:11:29]} 24. Qg5 {[%emt 0:03:08]} Nce4 {[%emt 0:02:58]} 25. Bxe4 {[%emt 0:00:44]} Nxe4 {[%emt 0:00:06]} 26. Qd5 {[%emt 0:00:26]} Nc3 {[%emt 0:00:22]} 0-1

[Event "EICC 2025"]
[Site "Eforie-Nord"]
[Date "2025.03.15"]
[Round "1.15"]
[White "Sanal, Vahap"]
[Black "Zherebtsova, Alexandra"]
[Result "1-0"]
[Annotator "ChessBase"]
[ECO "C27"]
[WhiteElo "2557"]
[BlackElo "2229"]
[PlyCount "59"]
[EventDate "2025.03.14"]
[EventType "swiss"]
[EventCountry "ROU"]
[SourceTitle "playchess.com"]
[Source "ChessBase"]
[SourceQuality "1"]
[TimeControl "40/5400+30:1800+30"]

1. e4 {[%emt 0:00:04]} e5 {[%emt 0:00:04]} 2. Nc3 {[%emt 0:00:05]} Nf6 {[%emt 0:00:42]} 3. Bc4 {[%emt 0:00:16]} Bb4 {[%emt 0:01:45]} 4. d3 {[%emt 0:00:14]} c6 {[%emt 0:01:36]} 5. a3 {[%emt 0:05:03]} Bxc3+ {[%emt 0:11:04]} 6. bxc3 {[%emt 0:00:19]} d5 {[%emt 0:00:33]} 7. exd5 {[%emt 0:00:11]} cxd5 {[%emt 0:00:09]} 8. Ba2 {[%emt 0:00:11]} h6 {[%emt 0:07:39]} 9. Ne2 {[%emt 0:00:59]} Nc6 {[%emt 0:00:40]} 10. O-O {[%emt 0:00:12]} O-O {[%emt 0:00:25]} 11. h3 {[%emt 0:01:36]} Re8 {[%emt 0:02:46]} 12. Kh1 {[%emt 0:03:34]} b6 {[%emt 0:03:41]} 13. Bb2 {[%emt 0:06:48]} Ba6 {[%emt 0:05:07]} 14. Qd2 {[%emt 0:02:17]} Qd7 {[%emt 0:03:13]} 15. Rae1 {[%emt 0:01:15]} Rad8 {[%emt 0:00:56]} 16. Ng3 {[%emt 0:02:49]} Qc8 {[%emt 0:03:38]} 17. f3 {[%emt 0:01:58]} Qd7 {[%emt 0:17:23]} 18. Qf2 {[%emt 0:03:08]} Re7 {[%emt 0:08:20]} 19. f4 {[%emt 0:05:47]} exf4 {[%emt 0:06:52]} 20. Qxf4 {[%emt 0:00:40]} Rxe1 {[%emt 0:01:07]} 21. Rxe1 {[%emt 0:00:04]} Qd6 {[%emt 0:02:47]} 22. Qf3 {[%emt 0:11:38]} Ne5 {[%emt 0:05:13]} 23. Qf2 {[%emt 0:03:35]} Ng6 {[%emt 0:04:31]} 24. Nf5 {[%emt 0:08:59]} Qc6 {[%emt 0:01:56]} 25. c4 {[%emt 0:01:49]} dxc4 {[%emt 0:00:27]} 26. Nxh6+ {[%emt 0:00:40]} Kf8 {[%emt 0:01:28]} 27. Bc3 {[%emt 0:01:18]} Rd7 {[%emt 0:00:16]} 28. Bb4+ {[%emt 0:00:49]} Ne7 {[%emt 0:00:05]} 29. Nf5 {[%emt 0:00:28]} Nfd5 {[%emt 0:00:04]} 30. Qh4 {[%emt 0:00:28]} 1-0

[Event "EICC 2025"]
[Site "Eforie-Nord"]
[Date "2025.03.15"]
[Round "1.15"]
[White "Yeritsyan, Hayk"]
[Black "Cheparinov, Ivan"]
[Result "1/2-1/2"]
[Annotator "TA"]
[ECO "B44"]
[WhiteElo "2323"]
[BlackElo "2646"]
[PlyCount "97"]
[EventDate "2025.03.14"]
[EventType "swiss"]
[EventCountry "ROU"]
[SourceTitle "playchess.com"]
[Source "ChessBase"]
[SourceQuality "1"]
[TimeControl "40/5400+30:1800+30"]

{[%evp 9,97,12,12,12,12,5,12,12,12,12,12,12,12,0,-2,-15,-22,-29,-25,-20,-17,-2,-10,-10,31,50,44,62,70,49,66,31,115,100,124,130,123,108,119,104,100,120,115,56,104,80,82,71,70,91,94,62,61,58,66,54,81,72,73,65,55,-28,-49,-52,0,0,0,0,20,12,79,90,64,16,2,8,72,0,29,0,79,83,85,61,92,92,92,92,93,-8]} 1. e4 {[%emt 0:00:07]} c5 {[%emt 0:00:16]} 2. Nf3 {[%emt 0:00:10]} e6 {[%emt 0:00:04]} 3. d4 {[%emt 0:00:46]} cxd4 {[%emt 0:00:05]} 4. Nxd4 {[%emt 0:00:08]} Nc6 {[%emt 0:00:04]} 5. Bf4 {[%emt 0:03:07]} d6 {[%emt 0:00:49]} 6. Nxc6 {[%emt 0:00:20] B44: Sicilian: Taimanov: 5 Nb5.} bxc6 {[%emt 0:00:05]} 7. c4 {[%emt 0:00:09]} Rb8 $1 {[%emt 0:00:11][%mdl 4] is currently scoring better than 7...e5.} 8. Qc2 {[%emt 0:00:33] The position is equal.} Ne7 {[%emt 0:02:45][%cal Bg8e7,Be7c6,Bc6d4][%mdl 32]} 9. Nc3 {[%emt 0:03:21]} c5 {[%emt 0:00:05]} 10. Rd1 {[%emt 0:10:44]} Nc6 {[%emt 0:01:39]} 11. e5 $146 {[%emt 0:10:06][%cal Re5d6]} ({Predecessor:} 11. Qd2 Nd4 12. Bd3 Be7 13. O-O O-O 14. Be3 a6 15. f4 Bb7 16. Ne2 Bf6 17. Nxd4 cxd4 {½-½ Niemann,H (2667)-Vokhidov,S (2596) Wch Rapid Samarkand 2023 (11)}) 11... Nd4 {[%emt 0:05:51]} 12. Qd2 {[%emt 0:00:56]} Qc7 {[%emt 0:08:50]} 13. exd6 {[%emt 0:21:31]} (13. Nb5 Nxb5 14. cxb5 (14. exd6 $2 Bxd6 15. Bxd6 Nxd6 $19) 14... d5 $15) 13... Bxd6 {[%emt 0:00:08]} 14. Bxd6 {[%emt 0:02:14]} Qxd6 {[%emt 0:00:05]} 15. Nb5 {[%emt 0:00:14]} Qe5+ {[%emt 0:04:38]} 16. Be2 {[%emt 0:00:05]} Rxb5 {[%emt 0:03:38]} (16... Qxe2+ {simplifies} 17. Qxe2 Nxe2 18. Kxe2 Bd7) 17. cxb5 {[%emt 0:00:10]} Bb7 {[%emt 0:00:02]} 18. Kf1 {[%emt 0:04:34][%cal Be1f1,Bf1f2,Bf2g1][%mdl 32]} O-O {[%emt 0:04:07] aiming for ...Nxe2.} 19. f3 {[%emt 0:02:56]} Rd8 {[%emt 0:13:36]} 20. Kf2 $1 {[%emt 0:02:22]} Rd5 {[%emt 0:06:07]} (20... Qf6 $14) 21. Bc4 $16 {[%emt 0:20:05]} Nxf3 {[%emt 0:06:47]} 22. Qe2 {[%emt 0:01:02]} (22. Bxd5 Nxd2 23. Bxb7 Qf6+ (23... Qxb2 24. Ke1 $17) 24. Ke1 Nc4 $19) 22... Qxe2+ {[%emt 0:19:03]} 23. Bxe2 {[%emt 0:01:13]} Nd4 {[%emt 0:00:04]} 24. Rhe1 {[%emt 0:03:57]} Rf5+ {[%emt 0:05:26]} 25. Kg1 {[%emt 0:00:10]} Kf8 {[%emt 0:01:45]} 26. Bd3 {[%emt 0:02:53]} (26. Bf1 $1 $16) 26... Rf4 {[%emt 0:02:20]} (26... Rg5 $14 27. Be4 (27. Bxh7 $2 Rxg2+ 28. Kf1 g6 $19) 27... Bxe4 28. Rxe4 Rd5) 27. h3 {[%emt 0:01:19][%cal Od1c1]} (27. Bxh7 g6 (27... Nxb5 28. Bd3 $16) (27... Rg4 28. b4 $17) 28. Rf1 Rg4 $17) 27... Bd5 {[%emt 0:02:12]} 28. b3 {[%emt 0:01:32][%cal Od1c1]} (28. Bxh7 g6 29. Rc1 Kg7 (29... Nxb5 30. Rxc5 Rb4 31. Bxg6 $17) 30. Rxc5 Bxa2 $19 (30... Kxh7 31. a4 $17)) 28... Ke7 {[%emt 0:00:15]} 29. Rc1 {[%emt 0:01:13]} (29. Bxh7 $6 g6 $11) 29... Kd6 {[%emt 0:00:03]} 30. Rf1 {[%emt 0:00:08]} Rxf1+ {[%emt 0:00:03]} 31. Kxf1 $14 {[%emt 0:00:04][%mdl 4096] Endgame KRB-KBN} f5 {[%emt 0:00:05]} 32. Kf2 {[%emt 0:00:38]} e5 {[%emt 0:00:12][%cal Be6e5,Be5e4][%mdl 32]} 33. h4 {[%emt 0:02:34]} e4 {[%emt 0:06:34]} 34. Bc4 {[%emt 0:00:06]} f4 {[%emt 0:00:01]} 35. a4 {[%emt 0:03:56]} (35. Rc3 $14) 35... e3+ {[%emt 0:01:45]} 36. Kf1 {[%emt 0:00:02]} Nxb3 {[%emt 0:00:11]} (36... Be4 $15) 37. Bxb3 $11 {[%emt 0:00:54]} Bxb3 $15 {[%emt 0:00:01] KR-KB} 38. a5 {[%emt 0:00:04][%cal Ba4a5,Ba5b6][%mdl 32]} c4 {[%emt 0:02:00]} 39. Ke2 {[%emt 0:00:59][%cal Og2g3]} (39. b6 axb6 40. axb6 Kc6 $18) 39... Ba4 {[%emt 0:06:27]} (39... Kc5 $6 40. b6 axb6 41. axb6 Kxb6 42. Rf1 $16) (39... g6 $11) 40. b6 $16 {[%emt 0:00:58]} (40. Rxc4 $2 Bxb5 41. Kd3 Bxc4+ (41... Kd5 $2 42. h5 $19) 42. Kc2 Ke5 $19) 40... axb6 {[%emt 0:00:04]} 41. axb6 {[%emt 0:31:45][%cal Ob6b7]} Bc6 {[%emt 0:31:20]} (41... Bb5 $2 42. b7 c3+ 43. Ke1 $18) 42. Rb1 {[%emt 0:00:00] Hoping for b7.} (42. Rxc4 $2 Bb5 (42... Bxg2 $2 43. Rxf4 Kc6 44. Rg4 $18) 43. Kd3 Bxc4+ (43... Kd5 $2 44. b7 $18) 44. Kc2 Bd5 $19) 42... Bb7 {[%emt 0:00:00] [#]} (42... c3 $1 $11 {keeps the balance.}) 43. Rg1 {[%emt 0:00:00]} (43. Rd1+ $1 $16 Kc5 44. Rf1) 43... Kc5 {[%emt 0:00:00][%cal Ob7e4]} 44. g3 {[%emt 0:00:00]} (44. Rf1 {feels hotter.} c3 45. Kd3 e2 46. Rc1) 44... fxg3 {[%emt 0:00:00]} (44... c3 $11) 45. Rxg3 {[%emt 0:00:00]} (45. Kxe3 g2 (45... Kxb6 46. Rxg3 g6 47. Kd4 $14) 46. Rb1 h6 $11) 45... Kxb6 {[%emt 0:00:00]} 46. Rxg7 {[%emt 0:00:00]} Be4 {[%emt 0:00:00]} 47. Kxe3 {[%emt 0:00:00] White is better.} Bd3 {[%emt 0:00:00]} 48. Kd4 {[%emt 0:00:00] White is more active.} Kc6 {[%emt 0:00:00] [#]} 49. Rxh7 {[%emt 0:00:00] Weighted Error Value: White=0.12 (very precise) /Black=0.17 (very precise)   Mistake:       	White=4     	Black=6      Inaccurate:     	White=3     	Black=4      OK:         	White=16    	Black=19     Best:        	White=4     	Black=2      Strong:       	White=1     	---} 1/2-1/2

[Event "EICC 2025"]
[Site "Eforie-Nord"]
[Date "2025.03.15"]
[Round "1.16"]
[White "Grandelius, Nils"]
[Black "Stefanou, Konstantinos"]
[Result "1-0"]
[Annotator "TA"]
[ECO "B30"]
[WhiteElo "2644"]
[BlackElo "2318"]
[PlyCount "69"]
[EventDate "2025.03.14"]
[EventType "swiss"]
[EventCountry "ROU"]
[SourceTitle "playchess.com"]
[Source "ChessBase"]
[SourceQuality "1"]
[TimeControl "40/5400+30:1800+30"]

{[%evp 11,69,27,27,29,28,35,43,47,39,45,45,45,57,52,45,53,62,57,66,53,64,63,77,66,85,81,90,71,128,110,129,87,121,123,133,129,132,128,135,127,137,110,127,93,100,99,129,97,152,114,243,270,256,140,125,97,345,338,473,453]} 1. e4 {[%emt 0:00:11]} c5 {[%emt 0:00:11]} 2. Nf3 {[%emt 0:00:08]} Nc6 {[%emt 0:00:11]} 3. Bb5 {[%emt 0:00:24]} Nf6 {[%emt 0:00:35][%cal Bg8f6,Bf6g4,Bg4e5,Be5c6,Bc6d4][%mdl 32]} 4. Nc3 {[%emt 0:00:34]} Qc7 {[%emt 0:00:23]} 5. O-O {[%emt 0:00:48]} Nd4 {[%emt 0:00:38]} 6. Re1 {[%emt 0:01:02]} a6 {[%emt 0:01:01]} 7. Bf1 {[%emt 0:00:29] B30: Sicilian: 2...Nc6 3 Bb5, lines without ...g6.} Ng4 {[%emt 0:01:45] ( -> ...Nxf3+)} 8. g3 {[%emt 0:00:39]} Nxf3+ {[%emt 0:00:27]} 9. Qxf3 {[%emt 0:00:07] White is slightly better.} Ne5 {[%emt 0:00:03]} 10. Qe2 {[%emt 0:00:09]} e6 {[%emt 0:00:18] Wards off Nd5} 11. b3 {[%emt 0:02:05] 11.d3 is the hot move.} Nc6 {[%emt 0:04:12]} 12. Bb2 $146 {[%emt 0:01:55][%cal Oc3d5]} (12. Nd1 Nd4 13. Qd3 g6 14. c3 Nc6 15. Ne3 Bg7 16. Bb2 O-O 17. Bg2 b5 18. f4 {0-1 Xu,Y (2444)-Dai,C (2438) Shanghai Gulf Cup 2017 (6)}) 12... Nd4 {[%emt 0:07:25][%csl LRc2,LRe2]} 13. Qd3 {[%emt 0:01:35]} d6 {[%emt 0:01:43]} 14. Nd1 {[%emt 0:03:21]} Be7 {[%emt 0:02:28]} 15. c3 {[%emt 0:08:41][%cal Bc2c3,Bc3d4,Bd4d5][%mdl 32]} Nc6 {[%emt 0:00:29]} 16. Ne3 {[%emt 0:00:08]} Bd7 {[%emt 0:02:25]} 17. Qe2 {[%emt 0:01:21]} O-O {[%emt 0:17:31]} 18. d4 {[%emt 0:04:16]} cxd4 {[%emt 0:08:06]} 19. cxd4 {[%emt 0:00:09]} Bf6 {[%emt 0:08:46]} (19... e5 $142) 20. Rad1 {[%emt 0:04:12]} Rfd8 {[%emt 0:08:55][%cal Bf8d8,Bd8d7,Bd7c7][%mdl 32]} 21. Ba1 {[%emt 0:15:50]} b5 {[%emt 0:10:52]} 22. d5 {[%emt 0:11:05]} Bxa1 {[%emt 0:01:00]} 23. dxc6 {[%emt 0:00:06]} (23. Rxa1 Nd4 24. Qd1 e5 $15) 23... Bc3 {[%emt 0:00:06] Black is weak on the light squares} 24. cxd7 {[%emt 0:00:08] White plays in the center} Bxe1 {[%emt 0:00:12]} 25. Qxe1 {[%emt 0:00:08]} Rxd7 {[%emt 0:01:40]} 26. Bd3 {[%emt 0:01:12] White is more active.} Qc5 {[%emt 0:04:56]} 27. Qe2 {[%emt 0:02:35]} Rc7 {[%emt 0:02:52]} 28. Kg2 {[%emt 0:01:37]} Rb8 {[%emt 0:01:28]} 29. h4 {[%emt 0:01:29][%cal Bh2h4,Bh4h5][%mdl 32]} Rb6 {[%emt 0:03:04]} ({Better is} 29... Qa3 30. e5 d5) 30. Rd2 {[%emt 0:05:59]} Qa3 {[%emt 0:03:05]} (30... Qb4 $16 31. Nc2 Qc5) 31. h5 $18 {[%emt 0:07:18]} h6 {[%emt 0:00:45] [#]} 32. Bc2 {[%emt 0:06:18]} ({Only move:} 32. Nd5 $1 $18 {[%cal Rd5c7]} exd5 33. exd5) 32... Qc5 $16 {[%emt 0:02:58]} 33. Bb1 {[%emt 0:00:10] Rc2 is the strong threat.} Rbc6 $2 {[%emt 0:00:40] [#]} (33... Rb8 $16 34. Qd3 Qxh5) 34. Nd5 $1 $18 {[%emt 0:03:10][%mdl 512]} Qc1 {[%emt 0:05:01]} (34... exd5 $2 {too greedy.} 35. exd5 Rc8 36. dxc6 $18) (34... Qa7 35. Nxc7) 35. Rd1 {[%emt 0:01:31] Weighted Error Value: White=0.15 (very precise) /Black=0.33  Loses game:     	---       	Black=1      Mistake:       	White=1     	Black=3      Inaccurate:     	White=1     	Black=3      OK:         	White=11    	Black=9      Best:        	---       	Black=1      Brilliant:      	White=1     	---} 1-0